Workbook

Sheet List
A1: Short Mth | B1: Months | C1: Month # | D1: Month | E1: Selection | F1: Type | H1: Region | I1: Country | J1: Choose | K1: Regions | M1: C Format
A2: Jul | B2: July | C2: 1 | D2: CM | E2: Jun | F2: Revenue | H2: Americas | I2: Argentina | J2: 1 | K2: Europe | L2: One | M2: 0.02
A3: Aug | B3: August | C3: 2 | D3: PM | E3: =INDEX(C2:C13,MATCH(ComboCell,Months,0)) -> 12 | F3: Expense | H3: Americas | I3: Brazil | J3: 2 | K3: Americas | L3: Two | M3: -0.005
A4: Sep | B4: September | C4: 3 | E4: =E3-1 -> 11 | F4: G Profit | H4: Americas | I4: Canada | J4: 3 | K4: Asia Pac | L4: Three
A5: Oct | B5: October | C5: 4 | H5: Americas | I5: Chile | J5: 4 | K5: Africa | L5: Four
A6: Nov | B6: November | C6: 5 | H6: Americas | I6: Columbia
A7: Dec | B7: December | C7: 6 | H7: Americas | I7: Cuba
A8: Jan | B8: January | C8: 7 | H8: Americas | I8: Mexico
A9: Feb | B9: February | C9: 8 | H9: Americas | I9: Uraguay
A10: Mar | B10: March | C10: 9 | H10: Americas | I10: USA
A11: Apr | B11: April | C11: 10 | H11: Americas | I11: Venezuala
A12: May | B12: May | C12: 11 | H12: Asia Pac | I12: Australia
A13: Jun | B13: June | C13: 12 | H13: Asia Pac | I13: Bangladesh
H14: Asia Pac | I14: Cambodia
H15: Asia Pac | I15: China
H16: Asia Pac | I16: Hong Kong
H17: Asia Pac | I17: India
H18: Asia Pac | I18: Laos
H19: Asia Pac | I19: New Zealand
H20: Asia Pac | I20: Pakistan
H21: Asia Pac | I21: Vietnam
H22: Europe | I22: England
H23: Europe | I23: France
H24: Europe | I24: Germany
H25: Europe | I25: Greece
H26: Europe | I26: Ireland
H27: Europe | I27: Italy
H28: Europe | I28: Portugal
H29: Europe | I29: Scotland
H30: Europe | I30: Spain
H31: Europe | I31: Wales
H32: Africa | I32: Algeria
H33: Africa | I33: Egypt
H34: Africa | I34: Ethiopia
H35: Africa | I35: Kenya
H36: Africa | I36: Libya
H37: Africa | I37: Mauritius
H38: Africa | I38: Nigeria
H39: Africa | I39: South Africa
H40: Africa | I40: Tunisia
H41: Africa | I41: Zimbabwe

Sheet Channel
C1: 1 | D1: 2 | E1: 3 | F1: 4 | G1: 5 | H1: 6 | I1: 7 | J1: 8 | K1: 9 | L1: 10 | M1: 11 | N1: 12
A2: Region | B2: Type | C2: Jul | D2: Aug | E2: Sep | F2: Oct | G2: Nov | H2: Dec | I2: Jan | J2: Feb | K2: Mar | L2: Apr | M2: May | N2: Jun | O2: YTD
A3: Africa | B3: Sports | C3: 4396850.49 | D3: 5396730.856 | E3: 6314130.2 | F3: 4029593.998 | G3: 3312885.092 | H3: 3277392.277 | I3: 3852580.145 | J3: 5457002.571 | K3: 6141297.54 | L3: 3687787.306 | M3: 4302188.077 | N3: 5706261.198
A4: Africa | B4: Clothing | C4: 6230354.945 | D4: 3278560.042 | E4: 3960342.019 | F4: 3284030.351 | G4: 5471843.915 | H4: 4152604.988 | I4: 5778870.218 | J4: 4450746.778 | K4: 4166026.402 | L4: 6358253.977 | M4: 3382917.121 | N4: 5230739.431
A5: Africa | B5: Computing | C5: 4557059.617 | D5: 6059810.415 | E5: 3605405.706 | F5: 3035509.135 | G5: 4894880.782 | H5: 3631201.671 | I5: 4530348.875 | J5: 6714822.312 | K5: 5818071.354 | L5: 5831427.219 | M5: 5534011.159 | N5: 5175871.535
A6: Africa | B6: Outdoors | C6: 2616749.077 | D6: 3683775.329 | E6: 4800980.655 | F6: 7402381.926 | G6: 4932104.21 | H6: 7560348.095 | I6: 3674219.953 | J6: 2728501.285 | K6: 1831615.056 | L6: 2288971.432 | M6: 5166302.776 | N6: 2176426.547
A7: Europe | B7: Sports | C7: 5407834.925 | D7: 3181681.411 | E7: 2667110.707 | F7: 4650432.307 | G7: 5300403.094 | H7: 5247186.926 | I7: 4091290.448 | J7: 3668421.542 | K7: 5113160.765 | L7: 3567465.6 | M7: 4619673.648 | N7: 3964819.046
A8: Europe | B8: Clothing | C8: 6127709.054 | D8: 2845926.086 | E8: 3333888.384 | F8: 4194507.571 | G8: 4339604.95 | H8: 5295326.256 | I8: 5225849.984 | J8: 3703029.293 | K8: 5422009.402 | L8: 3400761.6 | M8: 4174816.186 | N8: 3912420.557
A9: Europe | B9: Computing | C9: 4968887.285 | D9: 3917145.456 | E9: 4651937.28 | F9: 2978708.275 | G9: 4147445.322 | H9: 3337660.186 | I9: 3042682.392 | J9: 3218520.787 | K9: 4821470.386 | L9: 4250952 | M9: 4174816.186 | N9: 4261743.821
A10: Europe | B10: Outdoors | C10: 1053474.336 | D10: 6043595.846 | E10: 4853521.229 | F10: 3373843.046 | G10: 2225849.034 | H10: 2166269.832 | I10: 4830473.176 | J10: 6713903.578 | K10: 1801617.048 | L10: 5451220.8 | M10: 4140596.381 | N10: 5327179.776
A11: Americas | B11: Sports | C11: 3475362.559 | D11: 3969639.132 | E11: 5913308.359 | F11: 3894408.702 | G11: 4413628.328 | H11: 4505293.374 | I11: 6033880.751 | J11: 4986454.073 | K11: 5129032.877 | L11: 5507375.76 | M11: 4983891.936 | N11: 3200377.165
A12: Americas | B12: Clothing | C12: 6248258.217 | D12: 4328796.959 | E12: 5346537.59 | F12: 3894408.702 | G12: 5720668.476 | H12: 5365224.889 | I12: 6370134.168 | J12: 3268275.142 | K12: 3369978.28 | L12: 4283514.48 | M12: 4263996.435 | N12: 3802801.102
A13: Americas | B13: Computing | C13: 6303716.13 | D13: 3667190.437 | E13: 3816256.513 | F13: 5841613.053 | G13: 5171332.762 | H13: 3869691.819 | I13: 6089922.987 | J13: 5247916.085 | K13: 3906952.841 | L13: 3311624.64 | M13: 4134784.421 | N13: 5610072.914
A14: Americas | B14: Outdoors | C14: 2458634.15 | D14: 6937416.96 | E14: 3816256.513 | F14: 4567741.048 | G14: 3636981.283 | H14: 4953953.295 | I14: 186807.4536 | J14: 5173212.653 | K14: 6110400.178 | L14: 4895445.12 | M14: 5076186.232 | N14: 6212496.851
A15: Asia Pac | B15: Sports | C15: 6318958.131 | D15: 3077666.819 | E15: 4033551.142 | F15: 4065363.515 | G15: 5671296.211 | H15: 4188668.309 | I15: 4788255.405 | J15: 4500468.848 | K15: 4156617.283 | L15: 5202540.863 | M15: 4526894.498 | N15: 3778567.126
A16: Asia Pac | B16: Clothing | C16: 3214908.523 | D16: 4907168.761 | E16: 4507054.972 | F16: 5665755.487 | G16: 5071261.458 | H16: 4551149.22 | I16: 3925136.405 | J16: 3500364.659 | K16: 5004567.209 | L16: 4770560.936 | M16: 5972457.446 | N16: 4779887.414
A17: Asia Pac | B17: Computing | C17: 3621391.21 | D17: 4753285.42 | E17: 5822343.388 | F17: 3991782.275 | G17: 6232619.044 | H17: 5034457.102 | I17: 5014310.382 | J17: 6520679.308 | K17: 4938061.332 | L17: 6197972.869 | M17: 4431791.672 | N17: 6593599.634
A18: Asia Pac | B18: Outdoors | C18: 5321227.9 | D18: 4360027.993 | E18: 3174229.377 | F18: 4672408.746 | G18: 2380783.051 | H18: 6363553.777 | I18: 6822750.191 | J18: 5480570.952 | K18: 2527223.308 | L18: 2610661.3 | M18: 4089421.5 | N18: 3740781.454
A21: Region | B21: Type | C21: Jul | D21: Aug | E21: Sep | F21: Oct | G21: Nov | H21: Dec | I21: Jan | J21: Feb | K21: Mar | L21: Apr | M21: May | N21: Jun | O21: YTD
A22: Africa | B22: Direct | C22: 534 | D22: 542 | E22: 847 | F22: 690 | G22: 797 | H22: 604 | I22: 770 | J22: 723 | K22: 784 | L22: 743 | M22: 622 | N22: 571 | O22: =OFFSET(B22,,List!$E$3) -> 571
A23: Africa | B23: Referral | C23: 774 | D23: 832 | E23: 538 | F23: 729 | G23: 829 | H23: 833 | I23: 697 | J23: 500 | K23: 726 | L23: 730 | M23: 838 | N23: 703 | O23: =OFFSET(B23,,List!$E$3) -> 703
A24: Africa | B24: Organic | C24: 84008 | D24: 83721 | E24: 85811 | F24: 94748 | G24: 86381 | H24: 98045 | I24: 95226 | J24: 97262 | K24: 84847 | L24: 84717 | M24: 83034 | N24: 88285 | O24: =OFFSET(B24,,List!$E$3) -> 88285
A25: Africa | B25: Social | C25: 572 | D25: 566 | E25: 844 | F25: 733 | G25: 693 | H25: 639 | I25: 803 | J25: 760 | K25: 897 | L25: 893 | M25: 836 | N25: 688 | O25: =OFFSET(B25,,List!$E$3) -> 688
A26: Africa | B26: 3rd Party | C26: 870 | D26: 596 | E26: 594 | F26: 670 | G26: 859 | H26: 510 | I26: 764 | J26: 698 | K26: 778 | L26: 552 | M26: 706 | N26: 847 | O26: =OFFSET(B26,,List!$E$3) -> 847
A27: Europe | B27: Direct | C27: 555 | D27: 740 | E27: 672 | F27: 795 | G27: 870 | H27: 883 | I27: 588 | J27: 770 | K27: 769 | L27: 724 | M27: 582 | N27: 509 | O27: =OFFSET(B27,,List!$E$3) -> 509
A28: Europe | B28: Referral | C28: 519 | D28: 566 | E28: 678 | F28: 665 | G28: 650 | H28: 865 | I28: 894 | J28: 611 | K28: 798 | L28: 693 | M28: 813 | N28: 760 | O28: =OFFSET(B28,,List!$E$3) -> 760
A29: Europe | B29: Organic | C29: 88275 | D29: 82923 | E29: 93748 | F29: 97044 | G29: 83543 | H29: 94664 | I29: 87047 | J29: 91365 | K29: 87674 | L29: 84053 | M29: 92576 | N29: 93183 | O29: =OFFSET(B29,,List!$E$3) -> 93183
A30: Europe | B30: Social | C30: 778 | D30: 684 | E30: 854 | F30: 788 | G30: 739 | H30: 857 | I30: 809 | J30: 668 | K30: 865 | L30: 510 | M30: 792 | N30: 691 | O30: =OFFSET(B30,,List!$E$3) -> 691
A31: Europe | B31: 3rd Party | C31: 536 | D31: 867 | E31: 714 | F31: 660 | G31: 578 | H31: 572 | I31: 528 | J31: 582 | K31: 742 | L31: 840 | M31: 803 | N31: 634 | O31: =OFFSET(B31,,List!$E$3) -> 634
A32: Americas | B32: Direct | C32: 554 | D32: 647 | E32: 849 | F32: 610 | G32: 774 | H32: 758 | I32: 828 | J32: 579 | K32: 722 | L32: 714 | M32: 871 | N32: 525 | O32: =OFFSET(B32,,List!$E$3) -> 525
A33: Americas | B33: Referral | C33: 857 | D33: 558 | E33: 632 | F33: 819 | G33: 856 | H33: 807 | I33: 719 | J33: 684 | K33: 515 | L33: 883 | M33: 600 | N33: 635 | O33: =OFFSET(B33,,List!$E$3) -> 635
A34: Americas | B34: Organic | C34: 85820 | D34: 88966 | E34: 87703 | F34: 90602 | G34: 95100 | H34: 84603 | I34: 86256 | J34: 90698 | K34: 92226 | L34: 82456 | M34: 96923 | N34: 91836 | O34: =OFFSET(B34,,List!$E$3) -> 91836
A35: Americas | B35: Social | C35: 600 | D35: 696 | E35: 629 | F35: 612 | G35: 601 | H35: 769 | I35: 575 | J35: 624 | K35: 819 | L35: 738 | M35: 851 | N35: 600 | O35: =OFFSET(B35,,List!$E$3) -> 600
A36: Americas | B36: 3rd Party | C36: 582 | D36: 636 | E36: 890 | F36: 873 | G36: 709 | H36: 729 | I36: 760 | J36: 657 | K36: 565 | L36: 719 | M36: 777 | N36: 524 | O36: =OFFSET(B36,,List!$E$3) -> 524
A37: Asia Pac | B37: Direct | C37: 567 | D37: 842 | E37: 622 | F37: 880 | G37: 647 | H37: 540 | I37: 705 | J37: 502 | K37: 535 | L37: 520 | M37: 573 | N37: 821 | O37: =OFFSET(B37,,List!$E$3) -> 821
A38: Asia Pac | B38: Referral | C38: 700 | D38: 724 | E38: 547 | F38: 660 | G38: 571 | H38: 743 | I38: 777 | J38: 659 | K38: 829 | L38: 619 | M38: 773 | N38: 857 | O38: =OFFSET(B38,,List!$E$3) -> 857
A39: Asia Pac | B39: Organic | C39: 97857 | D39: 96866 | E39: 97334 | F39: 95264 | G39: 84848 | H39: 97349 | I39: 96984 | J39: 92354 | K39: 95850 | L39: 90570 | M39: 89638 | N39: 90136 | O39: =OFFSET(B39,,List!$E$3) -> 90136
A40: Asia Pac | B40: Social | C40: 607 | D40: 686 | E40: 609 | F40: 616 | G40: 534 | H40: 792 | I40: 751 | J40: 521 | K40: 527 | L40: 780 | M40: 510 | N40: 681 | O40: =OFFSET(B40,,List!$E$3) -> 681
A41: Asia Pac | B41: 3rd Party | C41: 551 | D41: 841 | E41: 649 | F41: 864 | G41: 881 | H41: 822 | I41: 535 | J41: 650 | K41: 744 | L41: 571 | M41: 554 | N41: 810 | O41: =OFFSET(B41,,List!$E$3) -> 810

Sheet Charts
C10: Region | D10: Month | E10: Month No | F10: Month | G10: Sports | H10: Clothing | I10: Computing | J10: Outdoors
C11: Asia Pac | D11: J | E11: 1 | F11: Jul | G11: =IF($E11<=List!$E$3,IF(G$26=TRUE,SUMPRODUCT((Channel!$C$2:$N$2=$F11)*(Channel!$B$3:$B$20=G$10)*(Channel!$A$3:$A$20=$C11)*(Channel!$C$3:$N$20)),NA()),NA()) -> 6318958.131 | H11: =IF($E11<=List!$E$3,IF(H$26=TRUE,SUMPRODUCT((Channel!$C$2:$N$2=$F11)*(Channel!$B$3:$B$20=H$10)*(Channel!$A$3:$A$20=$C11)*(Channel!$C$3:$N$20)),NA()),NA()) -> 3214908.523 | I11: =IF($E11<=List!$E$3,IF(I$26=TRUE,SUMPRODUCT((Channel!$C$2:$N$2=$F11)*(Channel!$B$3:$B$20=I$10)*(Channel!$A$3:$A$20=$C11)*(Channel!$C$3:$N$20)),NA()),NA()) -> 3621391.21 | J11: =IF($E11<=List!$E$3,IF(J$26=TRUE,SUMPRODUCT((Channel!$C$2:$N$2=$F11)*(Channel!$B$3:$B$20=J$10)*(Channel!$A$3:$A$20=$C11)*(Channel!$C$3:$N$20)),NA()),NA()) -> 5321227.9
C12: Asia Pac | D12: A | E12: 2 | F12: Aug | G12: =IF($E12<=List!$E$3,IF(G$26=TRUE,SUMPRODUCT((Channel!$C$2:$N$2=$F12)*(Channel!$B$3:$B$20=G$10)*(Channel!$A$3:$A$20=$C12)*(Channel!$C$3:$N$20)),NA()),NA()) -> 3077666.819 | H12: =IF($E12<=List!$E$3,IF(H$26=TRUE,SUMPRODUCT((Channel!$C$2:$N$2=$F12)*(Channel!$B$3:$B$20=H$10)*(Channel!$A$3:$A$20=$C12)*(Channel!$C$3:$N$20)),NA()),NA()) -> 4907168.761 | I12: =IF($E12<=List!$E$3,IF(I$26=TRUE,SUMPRODUCT((Channel!$C$2:$N$2=$F12)*(Channel!$B$3:$B$20=I$10)*(Channel!$A$3:$A$20=$C12)*(Channel!$C$3:$N$20)),NA()),NA()) -> 4753285.42 | J12: =IF($E12<=List!$E$3,IF(J$26=TRUE,SUMPRODUCT((Channel!$C$2:$N$2=$F12)*(Channel!$B$3:$B$20=J$10)*(Channel!$A$3:$A$20=$C12)*(Channel!$C$3:$N$20)),NA()),NA()) -> 4360027.993
C13: Asia Pac | D13: S | E13: 3 | F13: Sep | G13: =IF($E13<=List!$E$3,IF(G$26=TRUE,SUMPRODUCT((Channel!$C$2:$N$2=$F13)*(Channel!$B$3:$B$20=G$10)*(Channel!$A$3:$A$20=$C13)*(Channel!$C$3:$N$20)),NA()),NA()) -> 4033551.142 | H13: =IF($E13<=List!$E$3,IF(H$26=TRUE,SUMPRODUCT((Channel!$C$2:$N$2=$F13)*(Channel!$B$3:$B$20=H$10)*(Channel!$A$3:$A$20=$C13)*(Channel!$C$3:$N$20)),NA()),NA()) -> 4507054.972 | I13: =IF($E13<=List!$E$3,IF(I$26=TRUE,SUMPRODUCT((Channel!$C$2:$N$2=$F13)*(Channel!$B$3:$B$20=I$10)*(Channel!$A$3:$A$20=$C13)*(Channel!$C$3:$N$20)),NA()),NA()) -> 5822343.388 | J13: =IF($E13<=List!$E$3,IF(J$26=TRUE,SUMPRODUCT((Channel!$C$2:$N$2=$F13)*(Channel!$B$3:$B$20=J$10)*(Channel!$A$3:$A$20=$C13)*(Channel!$C$3:$N$20)),NA()),NA()) -> 3174229.377
C14: Asia Pac | D14: O | E14: 4 | F14: Oct | G14: =IF($E14<=List!$E$3,IF(G$26=TRUE,SUMPRODUCT((Channel!$C$2:$N$2=$F14)*(Channel!$B$3:$B$20=G$10)*(Channel!$A$3:$A$20=$C14)*(Channel!$C$3:$N$20)),NA()),NA()) -> 4065363.515 | H14: =IF($E14<=List!$E$3,IF(H$26=TRUE,SUMPRODUCT((Channel!$C$2:$N$2=$F14)*(Channel!$B$3:$B$20=H$10)*(Channel!$A$3:$A$20=$C14)*(Channel!$C$3:$N$20)),NA()),NA()) -> 5665755.487 | I14: =IF($E14<=List!$E$3,IF(I$26=TRUE,SUMPRODUCT((Channel!$C$2:$N$2=$F14)*(Channel!$B$3:$B$20=I$10)*(Channel!$A$3:$A$20=$C14)*(Channel!$C$3:$N$20)),NA()),NA()) -> 3991782.275 | J14: =IF($E14<=List!$E$3,IF(J$26=TRUE,SUMPRODUCT((Channel!$C$2:$N$2=$F14)*(Channel!$B$3:$B$20=J$10)*(Channel!$A$3:$A$20=$C14)*(Channel!$C$3:$N$20)),NA()),NA()) -> 4672408.746
C15: Asia Pac | D15: N | E15: 5 | F15: Nov | G15: =IF($E15<=List!$E$3,IF(G$26=TRUE,SUMPRODUCT((Channel!$C$2:$N$2=$F15)*(Channel!$B$3:$B$20=G$10)*(Channel!$A$3:$A$20=$C15)*(Channel!$C$3:$N$20)),NA()),NA()) -> 5671296.211 | H15: =IF($E15<=List!$E$3,IF(H$26=TRUE,SUMPRODUCT((Channel!$C$2:$N$2=$F15)*(Channel!$B$3:$B$20=H$10)*(Channel!$A$3:$A$20=$C15)*(Channel!$C$3:$N$20)),NA()),NA()) -> 5071261.458 | I15: =IF($E15<=List!$E$3,IF(I$26=TRUE,SUMPRODUCT((Channel!$C$2:$N$2=$F15)*(Channel!$B$3:$B$20=I$10)*(Channel!$A$3:$A$20=$C15)*(Channel!$C$3:$N$20)),NA()),NA()) -> 6232619.044 | J15: =IF($E15<=List!$E$3,IF(J$26=TRUE,SUMPRODUCT((Channel!$C$2:$N$2=$F15)*(Channel!$B$3:$B$20=J$10)*(Channel!$A$3:$A$20=$C15)*(Channel!$C$3:$N$20)),NA()),NA()) -> 2380783.051
C16: Asia Pac | D16: D | E16: 6 | F16: Dec | G16: =IF($E16<=List!$E$3,IF(G$26=TRUE,SUMPRODUCT((Channel!$C$2:$N$2=$F16)*(Channel!$B$3:$B$20=G$10)*(Channel!$A$3:$A$20=$C16)*(Channel!$C$3:$N$20)),NA()),NA()) -> 4188668.309 | H16: =IF($E16<=List!$E$3,IF(H$26=TRUE,SUMPRODUCT((Channel!$C$2:$N$2=$F16)*(Channel!$B$3:$B$20=H$10)*(Channel!$A$3:$A$20=$C16)*(Channel!$C$3:$N$20)),NA()),NA()) -> 4551149.22 | I16: =IF($E16<=List!$E$3,IF(I$26=TRUE,SUMPRODUCT((Channel!$C$2:$N$2=$F16)*(Channel!$B$3:$B$20=I$10)*(Channel!$A$3:$A$20=$C16)*(Channel!$C$3:$N$20)),NA()),NA()) -> 5034457.102 | J16: =IF($E16<=List!$E$3,IF(J$26=TRUE,SUMPRODUCT((Channel!$C$2:$N$2=$F16)*(Channel!$B$3:$B$20=J$10)*(Channel!$A$3:$A$20=$C16)*(Channel!$C$3:$N$20)),NA()),NA()) -> 6363553.777
C17: Asia Pac | D17: J | E17: 7 | F17: Jan | G17: =IF($E17<=List!$E$3,IF(G$26=TRUE,SUMPRODUCT((Channel!$C$2:$N$2=$F17)*(Channel!$B$3:$B$20=G$10)*(Channel!$A$3:$A$20=$C17)*(Channel!$C$3:$N$20)),NA()),NA()) -> 4788255.405 | H17: =IF($E17<=List!$E$3,IF(H$26=TRUE,SUMPRODUCT((Channel!$C$2:$N$2=$F17)*(Channel!$B$3:$B$20=H$10)*(Channel!$A$3:$A$20=$C17)*(Channel!$C$3:$N$20)),NA()),NA()) -> 3925136.405 | I17: =IF($E17<=List!$E$3,IF(I$26=TRUE,SUMPRODUCT((Channel!$C$2:$N$2=$F17)*(Channel!$B$3:$B$20=I$10)*(Channel!$A$3:$A$20=$C17)*(Channel!$C$3:$N$20)),NA()),NA()) -> 5014310.382 | J17: =IF($E17<=List!$E$3,IF(J$26=TRUE,SUMPRODUCT((Channel!$C$2:$N$2=$F17)*(Channel!$B$3:$B$20=J$10)*(Channel!$A$3:$A$20=$C17)*(Channel!$C$3:$N$20)),NA()),NA()) -> 6822750.191
C18: Asia Pac | D18: F | E18: 8 | F18: Feb | G18: =IF($E18<=List!$E$3,IF(G$26=TRUE,SUMPRODUCT((Channel!$C$2:$N$2=$F18)*(Channel!$B$3:$B$20=G$10)*(Channel!$A$3:$A$20=$C18)*(Channel!$C$3:$N$20)),NA()),NA()) -> 4500468.848 | H18: =IF($E18<=List!$E$3,IF(H$26=TRUE,SUMPRODUCT((Channel!$C$2:$N$2=$F18)*(Channel!$B$3:$B$20=H$10)*(Channel!$A$3:$A$20=$C18)*(Channel!$C$3:$N$20)),NA()),NA()) -> 3500364.659 | I18: =IF($E18<=List!$E$3,IF(I$26=TRUE,SUMPRODUCT((Channel!$C$2:$N$2=$F18)*(Channel!$B$3:$B$20=I$10)*(Channel!$A$3:$A$20=$C18)*(Channel!$C$3:$N$20)),NA()),NA()) -> 6520679.308 | J18: =IF($E18<=List!$E$3,IF(J$26=TRUE,SUMPRODUCT((Channel!$C$2:$N$2=$F18)*(Channel!$B$3:$B$20=J$10)*(Channel!$A$3:$A$20=$C18)*(Channel!$C$3:$N$20)),NA()),NA()) -> 5480570.952
C19: Asia Pac | D19: M | E19: 9 | F19: Mar | G19: =IF($E19<=List!$E$3,IF(G$26=TRUE,SUMPRODUCT((Channel!$C$2:$N$2=$F19)*(Channel!$B$3:$B$20=G$10)*(Channel!$A$3:$A$20=$C19)*(Channel!$C$3:$N$20)),NA()),NA()) -> 4156617.283 | H19: =IF($E19<=List!$E$3,IF(H$26=TRUE,SUMPRODUCT((Channel!$C$2:$N$2=$F19)*(Channel!$B$3:$B$20=H$10)*(Channel!$A$3:$A$20=$C19)*(Channel!$C$3:$N$20)),NA()),NA()) -> 5004567.209 | I19: =IF($E19<=List!$E$3,IF(I$26=TRUE,SUMPRODUCT((Channel!$C$2:$N$2=$F19)*(Channel!$B$3:$B$20=I$10)*(Channel!$A$3:$A$20=$C19)*(Channel!$C$3:$N$20)),NA()),NA()) -> 4938061.332 | J19: =IF($E19<=List!$E$3,IF(J$26=TRUE,SUMPRODUCT((Channel!$C$2:$N$2=$F19)*(Channel!$B$3:$B$20=J$10)*(Channel!$A$3:$A$20=$C19)*(Channel!$C$3:$N$20)),NA()),NA()) -> 2527223.308
C20: Asia Pac | D20: A | E20: 10 | F20: Apr | G20: =IF($E20<=List!$E$3,IF(G$26=TRUE,SUMPRODUCT((Channel!$C$2:$N$2=$F20)*(Channel!$B$3:$B$20=G$10)*(Channel!$A$3:$A$20=$C20)*(Channel!$C$3:$N$20)),NA()),NA()) -> 5202540.863 | H20: =IF($E20<=List!$E$3,IF(H$26=TRUE,SUMPRODUCT((Channel!$C$2:$N$2=$F20)*(Channel!$B$3:$B$20=H$10)*(Channel!$A$3:$A$20=$C20)*(Channel!$C$3:$N$20)),NA()),NA()) -> 4770560.936 | I20: =IF($E20<=List!$E$3,IF(I$26=TRUE,SUMPRODUCT((Channel!$C$2:$N$2=$F20)*(Channel!$B$3:$B$20=I$10)*(Channel!$A$3:$A$20=$C20)*(Channel!$C$3:$N$20)),NA()),NA()) -> 6197972.869 | J20: =IF($E20<=List!$E$3,IF(J$26=TRUE,SUMPRODUCT((Channel!$C$2:$N$2=$F20)*(Channel!$B$3:$B$20=J$10)*(Channel!$A$3:$A$20=$C20)*(Channel!$C$3:$N$20)),NA()),NA()) -> 2610661.3
C21: Asia Pac | D21: M | E21: 11 | F21: May | G21: =IF($E21<=List!$E$3,IF(G$26=TRUE,SUMPRODUCT((Channel!$C$2:$N$2=$F21)*(Channel!$B$3:$B$20=G$10)*(Channel!$A$3:$A$20=$C21)*(Channel!$C$3:$N$20)),NA()),NA()) -> 4526894.498 | H21: =IF($E21<=List!$E$3,IF(H$26=TRUE,SUMPRODUCT((Channel!$C$2:$N$2=$F21)*(Channel!$B$3:$B$20=H$10)*(Channel!$A$3:$A$20=$C21)*(Channel!$C$3:$N$20)),NA()),NA()) -> 5972457.446 | I21: =IF($E21<=List!$E$3,IF(I$26=TRUE,SUMPRODUCT((Channel!$C$2:$N$2=$F21)*(Channel!$B$3:$B$20=I$10)*(Channel!$A$3:$A$20=$C21)*(Channel!$C$3:$N$20)),NA()),NA()) -> 4431791.672 | J21: =IF($E21<=List!$E$3,IF(J$26=TRUE,SUMPRODUCT((Channel!$C$2:$N$2=$F21)*(Channel!$B$3:$B$20=J$10)*(Channel!$A$3:$A$20=$C21)*(Channel!$C$3:$N$20)),NA()),NA()) -> 4089421.5
C22: Asia Pac | D22: J | E22: 12 | F22: Jun | G22: =IF($E22<=List!$E$3,IF(G$26=TRUE,SUMPRODUCT((Channel!$C$2:$N$2=$F22)*(Channel!$B$3:$B$20=G$10)*(Channel!$A$3:$A$20=$C22)*(Channel!$C$3:$N$20)),NA()),NA()) -> 3778567.126 | H22: =IF($E22<=List!$E$3,IF(H$26=TRUE,SUMPRODUCT((Channel!$C$2:$N$2=$F22)*(Channel!$B$3:$B$20=H$10)*(Channel!$A$3:$A$20=$C22)*(Channel!$C$3:$N$20)),NA()),NA()) -> 4779887.414 | I22: =IF($E22<=List!$E$3,IF(I$26=TRUE,SUMPRODUCT((Channel!$C$2:$N$2=$F22)*(Channel!$B$3:$B$20=I$10)*(Channel!$A$3:$A$20=$C22)*(Channel!$C$3:$N$20)),NA()),NA()) -> 6593599.634 | J22: =IF($E22<=List!$E$3,IF(J$26=TRUE,SUMPRODUCT((Channel!$C$2:$N$2=$F22)*(Channel!$B$3:$B$20=J$10)*(Channel!$A$3:$A$20=$C22)*(Channel!$C$3:$N$20)),NA()),NA()) -> 3740781.454
C24: Toal | G24: =SUM(OFFSET(G10,,,List!$E$3)) -> 50530281.02 | H24: =SUM(OFFSET(H10,,,List!$E$3)) -> 51090385.08 | I24: =SUM(OFFSET(I10,,,List!$E$3)) -> 56558694 | J24: =SUM(OFFSET(J10,,,List!$E$3)) -> 47802858.1
C26: Selection | G26: TRUE | H26: TRUE | I26: TRUE | J26: TRUE
